Cogmind - Beta 15 @@@ ROGUE MODE // 2025.06.30 @ 22:04:02 Player: CheifClapdad Result: Destroyed by as-96279 with Assembled Blade Performance ------------- Evolutions (1) 500 Regions Visited (3) 600 Robots Destroyed (27) 135 Value Destroyed (552) 552 Prototype IDs (0) 0 Alien Tech Used (0) 0 Bonus (0) 0 TOTAL SCORE: 1787 Bonus ------- None Cogmind --------- Core Integrity 0/400 Matter 280/300 Energy 70/250 System Corruption 3% Temperature Cool (0) Movement Rolling (235) Ox9 Location -9/Mines Parts ------- > --- POWER (1) -------- Ion Engine > --- PROPULSION (4) --- Compact Wheel > --- UTILITY (2) ------ Cargo Storage Unit > --- WEAPON (2) ------- (None) > --- INVENTORY (30) --- Light Ion Engine Light Ion Engine Improved Ion Engine Huge Storage Unit Cargo Storage Unit Medium Battery (150) Large Matter Pod (150) High-capacity Matter Pod (200) High-capacity Matter Pod (121) Sensor Array Signal Interpreter Targeting Computer Targeting Computer Utility Shielding Weapon Shielding Beam Cannon Beam Cannon Beam Cannon Beam Cannon Light Assault Rifle Light Assault Rifle Light Assault Rifle Light Assault Rifle Light Assault Rifle Shotgun Peak State ------------ > --- POWER ------------ Light Ion Engine > --- PROPULSION ------- Light Treads Light Treads Light Treads Light Treads > --- UTILITY ---------- Cargo Storage Unit > --- WEAPON ----------- Light Assault Rifle Light Assault Rifle > --- INVENTORY -------- Ion Engine Light Ion Engine Light Ion Engine Improved Ion Engine Compact Wheel Huge Storage Unit Cargo Storage Unit Medium Battery Large Matter Pod High-capacity Matter Pod High-capacity Matter Pod Sensor Array Signal Interpreter Targeting Computer Targeting Computer Utility Shielding Weapon Shielding Beam Cannon Beam Cannon Beam Cannon Beam Cannon Light Assault Rifle Light Assault Rifle Light Assault Rifle Light Assault Rifle Light Assault Rifle Shotgun [Rating: 12] Favorites ----------- Power Light Ion Engine Engine Light Ion Engine Propulsion Light Treads Treads Light Treads Wheel Wheel Utility Cargo Storage Unit Storage Cargo Storage Unit Weapon Assault Rifle Ballistic Gun Assault Rifle Build | -11 -10 -9 -9 ------- Run | Yrd Mat Mat Min Slots Evolved 2 | . . 2 . Power . | . . . . Propulsion 2 | . . 2 . Utility . | . . . . Weapon . | . . . . Parts Attached 19 | 4 3 9 3 Power 2 | . . . 2 Engine 2 | . . . 2 Core . | . . . . Reactor . | . . . . Propulsion 9 | 2 1 6 . Treads 4 | 1 . 3 . Leg . | . . . . Wheel 5 | 1 1 3 . Hover . | . . . . Flight . | . . . . Utility 2 | 1 1 . . Device . | . . . . Storage 2 | 1 1 . . Processor . | . . . . Hackware . | . . . . Protection . | . . . . Artifact . | . . . . Weapon 6 | 1 1 3 1 Energy Gun . | . . . . Energy Cannon . | . . . . Ballistic Gun 6 | 1 1 3 1 Ballistic Cannon . | . . . . Launcher . | . . . . Special Weapon . | . . . . Impact Weapon . | . . . . Slashing Weapon . | . . . . Piercing Weapon . | . . . . Special Melee Weapon . | . . . . Unidentified Prototypes . | . . . . Parts Lost 14 | . 1 6 7 Power 1 | . . . 1 Propulsion 8 | . 1 3 4 Utility . | . . . . Weapon 5 | . . 3 2 Highest Loss Streak 7 | . 1 4 7 To Critical Strikes . | . . . . Average Backups 20 | 2 15 22 26 Power 2 | . 1 3 4 Propulsion 2 | 1 3 1 1 Utility 9 | . 6 12 12 Weapon 5 | . 3 5 9 Tool/Special . | . . . . Unused Backups 24 | . 1 . 23 Power 4 | . 1 . 3 Propulsion . | . . . . Utility 11 | . . . 11 Weapon 9 | . . . 9 Tool/Special . | . . . . Average Slot Usage (%) 73 | . 67 69 84 Engine 3 | . . . 10 Treads 20 | . 1 28 40 Wheel 14 | . 26 9 . Storage 12 | . 14 11 11 Ballistic Gun 22 | . 24 20 21 Peak Build Rating 12 | 4 8 10 12 Average Rating 8 | 3 6 9 10 On Entrance 5 | . 4 7 10 Naked Turns . | . . . . Heaviest Build 145 | 7 144 144 145 Greatest Support 80 | 20 20 80 80 Greatest Overweight (x) 14 | . 14 5 1 Average Overweight (x) 3 | . 5 2 1 Largest Inventory Capacity 30 | 8 30 30 30 Average Capacity 28 | 6 28 30 30 Most Carried 28 | 5 25 26 28 Average Carried 21 | 2 16 23 27 Final Capacity 30 | 8 30 30 30 Final Carried 26 | 5 25 26 26 Class Distribution -------------------- 94% | Hauler-Mutant 5% | Mutant Dominant Class ---------------- Hauler-Mutant | -10/Materials Hauler-Mutant | -9/Materials Hauler-Mutant | -9/Mines Resources | -11 -10 -9 -9 ----------- Run | Yrd Mat Mat Min Matter Collected 1099 | 240 158 498 203 Remotely . | . . . . Salvage Created 839 | . 184 534 121 Parts 55 | . 15 35 5 Haulers Intercepted 1 | . 1 . . Recyclers Shooed 1 | . . 1 . Parts Field Recycled . | . . . . Retrieved Matter . | . . . . Parts Self-Destructed . | . . . . Prevented . | . . . . Kills | -11 -10 -9 -9 ------- Run | Yrd Mat Mat Min Combat Hostiles Destroyed 30 | . 5 17 8 Guns 30 | . 5 17 8 Classes Destroyed 6 | . 4 1 1 Worker 1 | . 1 . . Hauler 1 | . 1 . . Swarmer 14 | . 3 8 3 Grunt 9 | . 2 7 . Sentry 2 | . . 2 . Assembled 5 | . . . 5 Best Kill Streak 5 | . 3 5 5 Combat Bots Only 5 | . 3 5 5 Max Kills in Single Turn 1 | . 1 1 1 Gunslinging . | . . . . Exploded . | . . . . Melee . | . . . . Uniques/NPCs Destroyed . | . . . . Combat | -11 -10 -9 -9 -------- Run | Yrd Mat Mat Min Hostile Shots Fired 196 | . 30 113 53 Missed 60 | . 11 40 9 Hits 136 | . 19 73 44 Melee 33 | . . 5 28 Projectile 103 | . 19 68 16 Critical Strikes 2 | . . 2 . Damage Taken 2034 | . 190 887 957 Core 444 | . 32 167 245 Absorbed by Shields . | . . . . Core Remaining (%) 93 | 100 87 . . Volleys Fired 99 | . 17 54 28 Largest 2 | . 2 2 2 Hottest 40 | . 40 40 40 Shots Fired 191 | . 32 103 56 Gun 191 | . 32 103 56 Cannon . | . . . . Launcher . | . . . . Special . | . . . . Kinetic 191 | . 32 103 56 Thermal . | . . . . Explosive . | . . . . Electromagnetic . | . . . . Robot Hit Streak 13 | . 11 13 7 Robot Miss Streak 3 | . 2 3 3 Penetration Max . | . . . . Secondary Targets 8 | . 2 3 3 Max Gunslinging Chain 1 | . 1 1 1 Shots Hit Robots 128 | . 20 72 36 Core Hits 62 | . 11 32 19 Critical Kills . | . . . . Critical Parts Destroyed 1 | . 1 . . Critical Strikes 1 | . 1 . . Destroy 1 | . 1 . . Melee Attacks . | . . . . Impact . | . . . . Slashing . | . . . . Piercing . | . . . . Sneak Attacks . | . . . . Combat Hostiles . | . . . . Follow-up Attacks . | . . . . Damage Inflicted 1224 | . 237 688 299 Guns 1224 | . 237 688 299 Cannons . | . . . . Explosions . | . . . . Melee . | . . . . Ramming . | . . . . Kinetic 1224 | . 237 688 299 Thermal . | . . . . Explosive . | . . . . Electromagnetic . | . . . . Impact . | . . . . Slashing . | . . . . Piercing . | . . . . Highest Corruption 3 | . . . 3 Average Corruption 3 | . . . 3 Corruption Purged . | . . . . Corruption Blocked . | . . . . Overload Shots . | . . . . Overflow Damage . | . . . . Projectiles . | . . . . Explosions . | . . . . Melee . | . . . . Knockbacks . | . . . . Impact . | . . . . Kinetic . | . . . . Secondary . | . . . . Self-Inflicted Damage . | . . . . Shots . | . . . . Rammed 1 | . . . 1 Targets Rammed 1 | . . . 1 Kicked . | . . . . Crushed . | . . . . Highest Temperature 12 | . . 12 . Average Temperature 4 | . . 4 . Received Heat Transfer 378 | . 78 300 . Siege Activations . | . . . . Martial Activations . | . . . . Shielding Activations . | . . . . Robots Disrupted . | . . . . Combat Hostiles . | . . . . Robots Corrupted . | . . . . Combat Hostiles . | . . . . Parts Fried . | . . . . Impact Corruptions . | . . . . Robots Melted . | . . . . Combat Hostiles . | . . . . Parts Melted . | . . . . Heat Transferred . | . . . . Parts Sabotaged . | . . . . Parts Stolen . | . . . . Parts Stripped . | . . . . Power Chain Reactions . | . . . . Alert | -11 -10 -9 -9 ------- Run | Yrd Mat Mat Min Maximum Alert Level 1 | . . 1 . Low Security (%) 97 | 100 100 84 100 Level 1 2 | . . 15 . Level 2 . | . . . . Level 3 . | . . . . Level 4 . | . . . . Level 5 . | . . . . High Security . | . . . . Max Security . | . . . . Peak Influence 210 | . 70 210 140 Initial 70 | . . 17 70 Average 38 | . 7 131 31 Influence Increases 593 | . 133 390 70 Destroy 0b10 Robot/C 500 | . 100 340 60 Destroy 0b10 Robot/NC 10 | . 10 . . Destroy Leader 82 | . 22 50 10 Destroy Structure 1 | . 1 . . Influence Decreases 593 | . 91 252 250 Entered New Map 135 | . . 25 110 Time Decay 391 | . 81 170 140 Lost Part 67 | . 10 57 . Squads Dispatched 3 | . 2 1 . Investigation 2 | . 2 . . Extermination . | . . . . Reinforcement 1 | . . 1 . Assault . | . . . . Garrison . | . . . . Intercept . | . . . . Searches Triggered . | . . . . Construction Impeded . | . . . . Haulers Reinforced . | . . . . Active Scanning Responses . | . . . . Cargo Convoy Interrupts . | . . . . Stealth | -11 -10 -9 -9 --------- Run | Yrd Mat Mat Min Distress Signals 4 | . 1 3 . Communications Jammed . | . . . . Distress Signals . | . . . . Times Spotted 49 | . 13 22 14 Peak Tracking Total 7 | . 3 7 6 Tactical Retreats . | . . . . Traps | -11 -10 -9 -9 ------- Run | Yrd Mat Mat Min Traps Triggered 2 | . 2 . . Indirectly . | . . . . Trap Hack Attempts . | . . . . Triggered . | . . . . Disarmed . | . . . . Reprogrammed . | . . . . Reused . | . . . . Traps Extracted . | . . . . Installed . | . . . . Triggered . | . . . . Machines | -11 -10 -9 -9 ---------- Run | Yrd Mat Mat Min Machines Disabled . | . . . . Max in Single Turn . | . . . . Machines Repaired . | . . . . Machines Dismantled . | . . . . Machines Sabotaged . | . . . . Overloaded Fab Kills . | . . . . Hacking | -11 -10 -9 -9 --------- Run | Yrd Mat Mat Min Machines Accessed 1 | . 1 . . Terminals 1 | . 1 . . Fabricators . | . . . . Repair Stations . | . . . . Recycling Units . | . . . . Scanalyzers . | . . . . Garrison Access . | . . . . Total Hacks 5 | . 5 . . Successful 1 | . 1 . . Failed 4 | . 4 . . Catastrophic 1 | . 1 . . Database Lockouts . | . . . . Manual 5 | . 5 . . Terminals 5 | . 5 . . Fabricators . | . . . . Repair Stations . | . . . . Recycling Units . | . . . . Scanalyzers . | . . . . Garrison Access . | . . . . Terminal Hacks . | . . . . Fabricator Hacks . | . . . . Repair Station Hacks . | . . . . Recycling Unit Hacks . | . . . . Scanalyzer . | . . . . Garrison Access Hacks . | . . . . Unauthorized Hacks 1 | . 1 . . Terminals 1 | . 1 . . Botnet 1 | . 1 . . Fabricators . | . . . . Repair Stations . | . . . . Recycling Units . | . . . . Scanalyzers . | . . . . Garrison Access . | . . . . Data Cores Recovered . | . . . . Used . | . . . . Hacking Detections 1 | . 1 . . Full Trace Events 1 | . 1 . . Feedback Events . | . . . . Feedback Blocked . | . . . . Robot Schematics Acquired . | . . . . Robots Built . | . . . . Authchips . | . . . . Time . | . . . . Total Robot Build Rating . | . . . . Part Schematics Acquired . | . . . . Parts Built . | . . . . Authchips . | . . . . Time . | . . . . Total Part Build Rating . | . . . . Parts Repaired . | . . . . Time . | . . . . Parts Recycled . | . . . . Recycled Matter . | . . . . Retrieved Matter . | . . . . Retrieved Components . | . . . . Parts Scanalyzed . | . . . . Part Schematics Acquired . | . . . . Parts Damaged . | . . . . Bothacking | -11 -10 -9 -9 ------------ Run | Yrd Mat Mat Min Used RIF Installer . | . . . . Robots Hacked . | . . . . Non-combat . | . . . . Combat . | . . . . Robot Hacks Applied . | . . . . Relay Couplers Released . | . . . . Fabnet Peak Effective % . | . . . . Robots Rewired . | . . . . Allies Hacked . | . . . . Hacks Repelled . | . . . . Allies | -11 -10 -9 -9 -------- Run | Yrd Mat Mat Min Total Allies . | . . . . Largest Group . | . . . . Highest-Rated Group . | . . . . Highest-Rated Ally . | . . . . Total Orders . | . . . . Ally Attacks . | . . . . Total Damage . | . . . . Kills . | . . . . Allies Corrupted . | . . . . Allies Melted . | . . . . Intel | -11 -10 -9 -9 ------- Run | Yrd Mat Mat Min Active Infowar (turns) . | . . . . Robot Analysis Total . | . . . . Derelict Logs Recovered 2 | . . . 2 Drone Launches . | . . . . Drone Recoveries . | . . . . Exploration | -11 -10 -9 -9 ------------- Run | Yrd Mat Mat Min Turns Passed 1897 | 53 850 348 646 Spaces Moved 824 | 51 454 93 226 Core 3 | 3 . . . Treads 277 | 3 . 48 226 Legs . | . . . . Wheels 544 | 45 454 45 . Hover . | . . . . Flight . | . . . . Fastest Speed 50 | 50 80 131 240 Average Speed 185 | 82 166 196 240 Slowest Speed 290 | 160 290 240 240 Overloaded Moves . | . . . . Propulsion Burnouts . | . . . . Robots Hopped . | . . . . Potential Cave-ins . | . . . . Cave-ins Triggered . | . . . . Exploration Rate (%) 23 | 3 47 8 37 Regions Visited 3 Branch Regions 1 Pre-discovered Areas . | . . . . Known Exits Taken . | . . . . Unknown Exits Taken 3 | 1 1 1 . Scrap Searched 2 | . . . 2 Spaces Dug . | . . . . Terrain Destroyed . | . . . . Melee . | . . . . Projectile . | . . . . AOE . | . . . . Terrain Rammed . | . . . . Walls Destroyed . | . . . . Machines Disabled . | . . . . Actions | -11 -10 -9 -9 --------- Run | Yrd Mat Mat Min Total 1006 | 59 516 170 261 Wait 26 | . 21 5 . Move 821 | 50 453 92 226 Hop . | . . . . Pick Up 37 | 5 21 9 2 Fast Attach 6 | 4 1 1 . Attach 12 | . 1 8 3 Detach . | . . . . Swap 3 | . 1 1 1 Drop 1 | . 1 . . Fire 99 | . 17 54 28 Melee . | . . . . Ram 1 | . . . 1 Kick . | . . . . Crush . | . . . . Escape Stasis . | . . . . Rewire . | . . . . Trap . | . . . . Miscellaneous . | . . . . Route ------- -11/Scrapyard -10/Materials -9/Materials -9/Mines History --------- Turn | Location | Event 19 | -11/Scrapyard | Discovered new exit (range 16) 54 | -11/Scrapyard | Entered Materials 423 | -10/Materials | Build established: Hauler-Mutant 873 | -10/Materials | Discovered new exit (range 15) 904 | -10/Materials | Entered another Materials area 904 | -9/Materials | Evolved 2 slots: Propulsion x2 993 | -9/Materials | Discovered new exit (range 16) 1063 | -9/Materials | Lost 4 parts (2n2w) 1252 | -9/Materials | Entered Mines 1634 | -9/Mines | Learned location of 1 exit from Materials 1737 | -9/Mines | Assembled infested the area 1742 | -9/Mines | Assisted by a Guerilla fighting off Assembled 1825 | -9/Mines | Core integrity fell below 50% 1876 | -9/Mines | Core integrity fell below 20% 1898 | -9/Mines | Destroyed by as-96279 with Assembled Blade Last Messages --------------- 01742_ A derelict emerges from the shadows: "You need to get out of here! I've been tracking a group of Assembled to figure out where they're coming from, and they're closing on this area, come on!" 01786_ K-01 Serf collects debris. 01823_ as-55388 destroyed. 01823_ Switching to secondary target: as-48853. 01831_ Lgt. Treads destroyed. 01836_ as-48853 destroyed. 01844_ as-56366 destroyed. 01849_ Lgt. Treads destroyed. 01859_ as-15774 destroyed. 01859_ Switching to secondary target: as-50422. 01862_ as-50422 destroyed. 01872_ Slammed into as-96279. 01873_ Acquired 44 matter. 01880_ Lgt. Assault Rifle destroyed. 01887_ Lgt. Ion Engine destroyed. 01887_ System corrupted by crushing effect (+3). Map ----- +----------------------------------------------------+ | ???# ### #?????????# #??????????????????? | | ?### ## #??????????# ##?????????????????? | | ## #??????????# ####??????????????? | | """ ##?????????# ###????????????? | | """ ########### ##???????????? | | """ ! #? #???????????? | | #?# #???????????? | | ####### ### ##??????????? | | ## ##?????# ???????????? | | ### #??????# ??????????????????? | | #?# #??????####### #??????????????????? | | ### ##?# ############## #??????????????????? | | ##?####??# #??????????????????? | | ##???????################ #??????????????????? | | #??????????????????????# #??????????????????? | | #??????????????????????# #??????????????????? | | #??????????????????????# #??????????????????? | | ##??????????????????#### ##?????????????????? | | #?????????????????## # ##????????????????? | | # #????????????????## #????????????????? | | # #????????????????# #????????????????? | | ##????????????????# ##????????????????? | | ##?????????????????## #!!#?????????????????? | | #???????????????????###### #?????????????????? | | ##?????????????????######## #?????????????????? | | ###??????????????????# aa@ar #?????????????????? | | #????????????????????#a#########?????????????????? | | ?????????????????????# #?????????????????????????? | | #????????????????????# #?????????????????????????? | | #???????????????????? #?????????????????????????? | | #????????????????????###?????????????????????????? | | #????????????????????????????????????????????????? | | ?????????????????????????????????????????????????? | | ?????????????????????????????????????????????????? | | ?????????????????????????????????????????????????? | | ?????????????????????????????????????????????????? | | ?????????????????????????????????????????????????? | | ?????????????????????????????????????????????????? | | ?????????????????????????????????????????????????? | | ?????????????????????????????????????????????????? | | ?????????????????????????????????????????????????? | | ?????????????????????????????????????????????????? | | ?????????????????????????????????????????????????? | | ?????????????????????????????????????????????????? | | ?????????????????????????????????????????????????? | | ?????????????????????????????????????????????????? | | ?????????????????????????????????????????????????? | | ?????????????????????????????????????????????????? | | ?????????????????????????????????????????????????? | | ?????????????????????????????????????????????????? | +----------------------------------------------------+ Best States ------------- Heat Dissipation 28 Energy Generation 10 Energy Capacity 125 Matter Stores 300 Matter Capacity 300 Sight Range 16 Terrain Scan Density 10 Evasion (%) 44 Recoil Reduction 4 Item Schematics ----------------- None Robot Schematics ------------------ None Fabricated ------------ Nothing Repaired ---------- Nothing Alien Tech Used ----------------- None Achievements -------------- None Challenges ------------ None Game ------ Seed SuperchargedSalvageClaymores Manual? 0 Play Time 00:09:21 Cumulative 102.0 hours Start 2025.06.30 @ 21:45:25 End 2025.06.30 @ 22:04:02 Sessions 1 Manual Loads 0 Difficulty Rogue Special Mode None Game No. 138 Rogue 138 Adventurer 0 Explorer 0 Win Type - Total 1 Types 1/0/0/0/0/0/0/0/0/0 Lore% 40 Gallery% 52 Achievement% 47 Wizard Run 0 Options --------- Layout 1 ASCII 0 Keyboard 0 Movement Arrows Keybinds 0 Fullscreen 1 Font 24/Smallcaps Map View 50x35 Zoom Use 0% Tactical HUD 1 Map Filters NONE Filters NONE Steam X RUN: d953f72f-8d3e-4e83-b22d-684dee9aa4fb